fUSD/lending_fUSD_20241121
["ID","MTS","AMOUNT","RATE_DAILY","PERIOD"]
[342912761,1732203059788,-587.1,0.00041916,18]
[342912762,1732203059798,-500.0,0.00041916,18]
[342912763,1732203059808,-500.0,0.00041916,18]
[342912764,1732203059821,-500.0,0.00041916,18]
[342912765,1732203059830,-500.0,0.00041916,18]
[342912766,1732203059840,-500.0,0.00041916,18]
[342912767,1732203059851,-500.0,0.00041916,18]
[342912768,1732203059861,-500.0,0.00041916,18]
[342912769,1732203059871,-500.0,0.00041916,18]
[342912770,1732203059882,-500.0,0.00041916,18]
[342912771,1732203059892,-500.0,0.00041916,18]
[342912772,1732203059903,-500.0,0.00041916,18]
[342912773,1732203059912,-500.0,0.00041916,18]
[342912774,1732203059922,-500.0,0.00041916,18]
[342912775,1732203059931,-500.0,0.00041916,18]
[342912776,1732203059941,-500.0,0.00041916,18]
[342912777,1732203059951,-500.0,0.00041916,18]
[342912778,1732203059961,-500.0,0.00041916,18]
[342912779,1732203059977,-500.0,0.00041916,18]
[342912780,1732203059987,-642.72,0.00041916,18]
[342912781,1732203059997,-500.0,0.00041916,18]
[342912782,1732203060007,-480.75493148,0.00041916,18]
[342912783,1732203060018,-669.32,0.00041916,18]
[342912784,1732203060027,-500.0,0.00041916,18]
[342912785,1732203060037,-500.0,0.00041916,18]
[342912786,1732203060047,-500.0,0.00041916,18]
[342912787,1732203060057,-695.72,0.00041916,18]
[342912788,1732203060067,-600.35952858,0.00041916,18]
[342912789,1732203060077,-500.0,0.00041916,18]
[342912790,1732203060087,-500.0,0.00041916,18]
[342912791,1732203060096,-500.0,0.00041916,18]
[342912792,1732203060106,-500.0,0.00041916,18]
[342912793,1732203060115,-500.0,0.00041916,18]
[342912794,1732203060125,-500.0,0.00041916,18]
[342912795,1732203060135,-500.0,0.00041916,18]
[342912796,1732203060145,-500.0,0.00041916,18]
[342912797,1732203060155,-500.0,0.00041916,18]
[342912798,1732203060164,-500.0,0.00041916,18]
[342912799,1732203060174,-500.0,0.00041916,18]
[342912800,1732203060184,-1267.04,0.00041916,18]
[342912801,1732203060195,-151.02142378,0.00041916,18]
[342912802,1732203060204,-948.43,0.00041916,18]
[342912803,1732203060218,-500.0,0.00041916,18]
[342912804,1732203060228,-500.0,0.00041916,18]
[342912805,1732203060305,-500.0,0.00041916,18]
[342912806,1732203060315,-500.0,0.00041916,18]
[342912807,1732203060325,-500.0,0.00041916,18]
[342912808,1732203060335,-520.62,0.00041916,18]
[342912809,1732203060344,-500.0,0.00041916,18]
[342912810,1732203060354,-500.0,0.00041916,18]
[342912811,1732203060364,-500.0,0.00041916,18]
[342912812,1732203060374,-552.9,0.00041916,18]
[342912813,1732203060384,-500.0,0.00041916,18]
[342912814,1732203060394,-500.0,0.00041916,18]
[342912815,1732203060404,-500.0,0.00041916,18]
[342912816,1732203060414,-500.0,0.00041916,18]
[342912817,1732203060424,-500.0,0.00041916,18]
[342912818,1732203060433,-500.0,0.00041916,18]
[342912819,1732203060443,-500.0,0.00041916,18]
[342912820,1732203060453,-500.0,0.00041916,18]
[342912821,1732203060466,-500.0,0.00041916,18]
[342912822,1732203060475,-500.0,0.00041916,18]
[342912823,1732203060484,-500.0,0.00041916,18]
[342912824,1732203060494,-300.0,0.00041916,120]
[342912825,1732203060503,-500.0,0.00041916,18]
[342912826,1732203060513,-500.0,0.00041916,18]
[342912827,1732203060523,-500.0,0.00041916,18]
[342912828,1732203060532,-500.0,0.00041916,18]
[342912829,1732203060542,-500.0,0.00041916,18]
[342912830,1732203060551,-500.0,0.00041916,18]
[342912831,1732203060561,-500.0,0.00041916,18]
[342912832,1732203060570,-500.0,0.00041916,18]
[342912833,1732203060580,-500.0,0.00041916,18]
[342912834,1732203060589,-500.0,0.00041916,18]
[342912835,1732203060599,-2586.7,0.00041916,18]
[342912836,1732203060609,-500.0,0.00041916,18]
[342912837,1732203060618,-500.0,0.00041916,18]
[342912838,1732203060628,-500.0,0.00041916,18]
[342912839,1732203060638,-543.58,0.00041916,18]
[342912840,1732203060647,-500.0,0.00041916,18]
[342912841,1732203060657,-543.0,0.00041916,18]
[342912842,1732203060669,-500.0,0.00041916,18]
[342912843,1732203060679,-661.91,0.00041916,18]
[342912844,1732203060688,-500.0,0.00041916,18]
[342912845,1732203060698,-956.88,0.00041916,18]
[342912846,1732203060708,-500.0,0.00041916,18]
[342912847,1732203060723,-500.0,0.00041916,18]
[342912848,1732203060736,-500.0,0.00041916,18]
[342912849,1732203060746,-500.0,0.00041916,18]
[342912850,1732203060755,-887.91,0.00041916,18]
[342912851,1732203060766,-500.0,0.00041916,18]
[342912852,1732203060778,-500.0,0.00041916,18]
[342912853,1732203060787,-1615.25,0.00041916,18]
[342912854,1732203060796,-500.0,0.00041916,18]
[342912855,1732203060806,-500.0,0.00041916,18]
[342912856,1732203060817,-619.21843441,0.00041916,18]
[342912857,1732203060827,-500.0,0.00041916,18]
[342912858,1732203060838,-500.0,0.00041916,18]
[342912859,1732203060850,-1481.48,0.00041916,18]
[342912860,1732203060859,-500.0,0.00041916,18]
[342912861,1732203060869,-500.0,0.00041916,18]
[342912862,1732203060878,-520.89,0.00041916,18]
[342912863,1732203060888,-514.41,0.00041916,18]
[342912864,1732203060897,-500.0,0.00041916,18]
[342912865,1732203060907,-500.0,0.00041916,18]
[342912866,1732203060917,-500.0,0.00041916,18]
[342912867,1732203060927,-500.0,0.00041916,18]
[342912868,1732203060936,-500.0,0.00041916,18]
[342912869,1732203060946,-750.59,0.00041916,18]
[342912870,1732203060955,-3515.69,0.00041916,18]
[342912871,1732203060969,-500.0,0.00041916,18]
[342912872,1732203060979,-500.0,0.00041916,18]
[342912873,1732203060989,-500.0,0.00041916,18]
[342912874,1732203060998,-1845.68,0.00041916,18]
[342912875,1732203061007,-500.0,0.00041916,18]
[342912876,1732203061017,-500.0,0.00041916,18]
[342912877,1732203061027,-500.0,0.00041916,18]
[342912878,1732203061036,-500.0,0.00041916,18]
[342912879,1732203061046,-847.03,0.00041916,18]
[342912880,1732203061056,-621.22914655,0.00041916,18]
[342912881,1732203061066,-500.0,0.00041916,18]
[342912882,1732203061075,-500.0,0.00041916,18]
[342912883,1732203061084,-500.0,0.00041916,18]
[342912884,1732203061094,-1468.49,0.00041916,18]
[342912885,1732203061104,-659.38,0.00041916,18]
[342912886,1732203061113,-500.0,0.00041916,18]
[342912887,1732203061123,-500.0,0.00041916,18]
[342912888,1732203061133,-1085.82,0.00041916,18]
[342912889,1732203061143,-820.35,0.00041916,18]
[342912890,1732203061153,-1238.1,0.00041916,18]
[342912891,1732203061163,-500.0,0.00041916,18]
[342912892,1732203061173,-500.0,0.00041916,7]
[342912893,1732203061182,-500.0,0.00041916,18]
[342912894,1732203061192,-500.0,0.00041916,18]
[342912895,1732203061201,-500.0,0.00041917,18]
[342912896,1732203061211,-330.57497986,0.00041917,18]
[342912897,1732203061225,-500.0,0.00041917,18]
[342912898,1732203061235,-500.0,0.00041917,120]
[342912899,1732203061245,-500.0,0.00041917,120]
[342912900,1732203061255,-500.0,0.00041917,120]
[342912901,1732203061265,-500.0,0.00041917,18]
[342912902,1732203061274,-599.52,0.00041917,60]
[342912903,1732203061284,-500.0,0.00041917,18]
[342912904,1732203061294,-731.08,0.00041917,18]
[342912905,1732203061306,-500.0,0.00041917,18]
[342912906,1732203061315,-590.97,0.00041917,18]
[342912907,1732203061325,-500.0,0.00041917,18]
[342912908,1732203061335,-500.0,0.00041917,18]
[342912909,1732203061345,-500.0,0.00041917,18]
[342912910,1732203061355,-500.0,0.00041917,18]
[342912911,1732203061365,-500.0,0.00041917,18]
[342912912,1732203061375,-500.0,0.00041917,18]
[342912913,1732203061385,-500.0,0.00041917,18]
[342912914,1732203061394,-650.05,0.00041917,18]
[342912915,1732203061404,-500.0,0.00041917,18]
[342912916,1732203061414,-500.0,0.00041917,18]
[342912917,1732203061424,-500.0,0.00041917,18]
[342912918,1732203061435,-500.0,0.00041917,18]
[342912919,1732203061444,-300.0,0.00041917,18]
[342912920,1732203061454,-500.0,0.00041917,18]
[342912921,1732203061467,-1000.0,0.00041917,18]
[342912922,1732203061478,-579.12,0.00041917,18]
[342912923,1732203061488,-500.0,0.00041917,18]
[342912924,1732203061498,-552.53,0.00041917,18]
[342912925,1732203061509,-500.0,0.00041917,18]
[342912926,1732203061518,-500.0,0.00041917,18]
[342912927,1732203061528,-500.0,0.00041917,18]
[342912928,1732203061537,-500.0,0.00041917,18]
[342912929,1732203061547,-500.0,0.00041917,18]
[342912930,1732203061556,-500.0,0.00041917,18]
[342912931,1732203061566,-693.3,0.00041917,18]
[342912932,1732203061576,-639.62,0.00041917,18]
[342912933,1732203061586,-593.71,0.00041917,18]
[342912934,1732203061596,-500.0,0.00041917,18]
[342912935,1732203061606,-686.47,0.00041917,18]
[342912936,1732203061616,-756.48,0.00041917,18]
[342912937,1732203061626,-537.79,0.00041917,18]
[342912938,1732203061636,-500.0,0.00041917,18]
[342912939,1732203061646,-500.0,0.00041917,18]
[342912940,1732203061655,-847.2,0.00041917,18]
[342912941,1732203061664,-500.0,0.00041917,18]
[342912942,1732203061674,-598.42,0.00041917,18]
[342912943,1732203061683,-500.0,0.00041917,18]
[342912944,1732203061692,-500.0,0.00041917,18]
[342912945,1732203061702,-500.0,0.00041917,18]
[342912946,1732203061711,-838.95,0.00041917,18]
[342912947,1732203061727,-398.03852541,0.00041917,18]
[342912948,1732203061736,-500.0,0.00041917,18]
[342912949,1732203061746,-530.94,0.00041917,18]
[342912950,1732203061755,-744.42,0.00041917,18]
[342912951,1732203061769,-551.41,0.00041917,18]
[342912952,1732203061779,-500.0,0.00041917,18]
[342912953,1732203061788,-371.54114867,0.00041917,18]
[342912954,1732203061798,-500.0,0.00041917,18]
[342912955,1732203061809,-577.75,0.00041917,18]
[342912956,1732203061818,-632.29,0.00041917,18]
[342912957,1732203061827,-500.0,0.00041917,18]
[342912958,1732203061836,-500.0,0.00041917,18]
[342912959,1732203061847,-157.92,0.00041917,18]
[342912960,1732203061857,-245.62961506,0.00041917,18]
[342912961,1732203061866,-652.24,0.00041917,18]
[342912962,1732203061876,-500.0,0.00041917,18]
[342912963,1732203061885,-500.0,0.00041917,18]
[342912964,1732203061896,-500.0,0.00041917,18]
[342912965,1732203061906,-500.0,0.00041917,18]
[342912966,1732203061915,-851.64,0.00041917,18]
[342912967,1732203061925,-567.46,0.00041917,18]
[342912968,1732203061934,-500.0,0.00041917,18]
[342912969,1732203061943,-500.0,0.00041917,18]
[342912970,1732203061952,-1006.3,0.00041917,18]
[342912971,1732203061962,-500.0,0.00041917,18]
[342912972,1732203061974,-500.0,0.00041917,18]
[342912973,1732203061984,-500.0,0.00041917,18]
[342912974,1732203061992,-500.0,0.00041917,18]
[342912975,1732203062002,-500.0,0.00041917,18]
[342912976,1732203062012,-614.6,0.00041917,18]
[342912977,1732203062021,-500.0,0.00041917,18]
[342912978,1732203062031,-795.12,0.00041917,18]
[342912979,1732203062040,-917.1,0.00041917,18]
[342912980,1732203062051,-525.37,0.00041917,18]
[342912981,1732203062060,-953.17,0.00041917,18]
[342912982,1732203062070,-500.0,0.00041917,18]
[342912983,1732203062081,-500.0,0.00041917,18]
[342912984,1732203062090,-500.0,0.00041917,18]
[342912985,1732203062100,-993.79,0.00041917,18]
[342912986,1732203062110,-879.52,0.00041917,18]
[342912987,1732203062120,-500.0,0.00041917,18]
[342912988,1732203062129,-500.0,0.00041917,18]
[342912989,1732203062140,-1023.5,0.00041917,18]
[342912990,1732203062149,-771.47,0.00041917,18]
[342912991,1732203062159,-551.74,0.00041917,18]
[342912992,1732203062168,-500.0,0.00041917,18]
[342912993,1732203062178,-560.57,0.00041917,18]
[342912994,1732203062188,-500.0,0.00041917,18]
[342912995,1732203062197,-500.0,0.00041917,18]
[342912996,1732203062207,-640.52,0.00041917,18]
[342912997,1732203062222,-500.0,0.00041917,18]
[342912998,1732203062232,-1083.77,0.00041917,18]
[342912999,1732203062241,-500.0,0.00041917,18]
[342913000,1732203062251,-500.0,0.00041917,18]
[342913001,1732203062261,-500.0,0.00041917,18]
[342913002,1732203062271,-500.0,0.00041917,18]
[342913003,1732203062280,-500.0,0.00041917,18]
[342913004,1732203062290,-1588.78,0.00041917,18]
[342913005,1732203062300,-644.80386693,0.00041917,18]
[342913006,1732203062309,-1105.86,0.00041917,18]
[342913007,1732203062319,-500.0,0.00041917,18]
[342913008,1732203062328,-500.0,0.00041917,18]
[342913009,1732203062338,-500.0,0.00041917,18]
[342913010,1732203062348,-974.33,0.00041917,18]
[342913011,1732203062357,-500.0,0.00041917,18]
[342913012,1732203062367,-500.0,0.00041917,18]
[342913013,1732203062376,-500.0,0.00041917,18]
[342913014,1732203062386,-500.0,0.00041917,18]
[342913015,1732203062396,-500.0,0.00041917,18]
[342913016,1732203062405,-500.0,0.00041917,18]
[342913017,1732203062415,-1277.05,0.00041917,18]
[342913018,1732203062425,-500.0,0.00041917,18]
[342913019,1732203062435,-500.0,0.00041917,18]
[342913020,1732203062444,-500.0,0.00041917,18]
[342913021,1732203062453,-786.73,0.00041917,18]
[342913022,1732203062467,-500.0,0.00041917,18]
[342913023,1732203062477,-500.0,0.00041917,18]
[342913024,1732203062487,-500.0,0.00041917,18]
[342913025,1732203062496,-500.0,0.00041917,18]
[342913026,1732203062506,-500.0,0.00041917,18]
[342913027,1732203062515,-500.0,0.00041917,18]
[342913028,1732203062525,-916.52,0.00041917,18]
[342913029,1732203062535,-500.0,0.00041917,18]
[342913030,1732203062544,-1641.18,0.00041917,18]
[342913031,1732203062554,-520.1,0.00041917,18]
[342913032,1732203062563,-669.71,0.00041917,18]
[342913033,1732203062572,-533.76,0.00041917,18]
[342913034,1732203062582,-650.4,0.00041917,18]
[342913035,1732203062591,-1305.08,0.00041917,18]
[342913036,1732203062600,-500.0,0.00041917,120]
[342913037,1732203062609,-650.25,0.00041917,18]
[342913038,1732203062619,-500.0,0.00041917,18]
[342913039,1732203062629,-500.0,0.00041917,18]
[342913040,1732203062638,-926.39,0.00041917,18]
[342913041,1732203062648,-731.05,0.00041917,18]
[342913042,1732203062658,-500.0,0.00041917,18]
[342913043,1732203062668,-500.0,0.00041917,18]
[342913044,1732203062678,-500.0,0.00041917,18]
[342913045,1732203062687,-500.0,0.00041917,18]
[342913046,1732203062696,-500.0,0.00041917,18]
[342913047,1732203062706,-500.0,0.00041917,18]
[342913048,1732203062720,-500.0,0.00041917,18]
[342913049,1732203062731,-624.75,0.00041917,18]
[342913050,1732203062740,-500.0,0.00041917,18]
[342913051,1732203062750,-500.0,0.00041917,18]
[342913052,1732203062761,-812.55,0.00041917,18]
[342913053,1732203062774,-500.0,0.00041917,18]
[342913054,1732203062783,-720.96,0.00041917,18]
[342913055,1732203062792,-500.0,0.00041917,18]
[342913056,1732203062802,-1901.24,0.00041917,18]
[342913057,1732203062811,-500.0,0.00041917,18]
[342913058,1732203062821,-500.0,0.00041917,18]
[342913059,1732203062830,-500.0,0.00041917,18]
[342913060,1732203062841,-10680.0,0.00041917,18]
[342913061,1732203062851,-765.15,0.00041917,18]
[342913062,1732203062861,-506.65,0.00041917,18]
[342913063,1732203062870,-797.84,0.00041917,18]
[342913064,1732203062880,-500.0,0.00041917,18]
[342913065,1732203062890,-500.0,0.00041917,18]
[342913066,1732203062899,-576.03,0.00041917,18]
[342913067,1732203062909,-865.82,0.00041917,18]
[342913068,1732203062919,-500.0,0.00041917,18]
[342913069,1732203062928,-500.0,0.00041917,18]
[342913070,1732203062938,-1451.99,0.00041917,18]
[342913071,1732203062948,-500.0,0.00041917,18]
[342913072,1732203062957,-500.0,0.00041917,18]
[342913073,1732203062973,-500.0,0.00041917,18]
[342913074,1732203062983,-1607.31,0.00041917,18]
[342913075,1732203062996,-500.0,0.00041917,18]
[342913076,1732203063006,-667.34,0.00041917,18]
[342913077,1732203063016,-1658.0,0.00041917,18]
[342913078,1732203063025,-500.0,0.00041917,18]
[342913079,1732203063036,-500.0,0.00041917,18]
[342913080,1732203063046,-1606.84,0.00041917,18]
[342913081,1732203063056,-1268.07,0.00041917,18]
[342913082,1732203063066,-537.46,0.00041917,18]
[342913083,1732203063077,-2509.52,0.00041917,18]
[342913084,1732203063088,-500.0,0.00041917,18]
[342913085,1732203063098,-803.03,0.00041917,18]
[342913086,1732203063109,-500.0,0.00041917,18]
[342913087,1732203063119,-500.0,0.00041917,18]
[342913088,1732203063131,-996.26,0.00041917,18]
[342913089,1732203063141,-3353.2,0.00041917,18]
[342913090,1732203063151,-500.0,0.00041917,18]
[342913091,1732203063162,-806.82,0.00041917,18]
[342913092,1732203063172,-623.97,0.00041917,18]
[342913093,1732203063182,-500.0,0.00041917,18]
[342913094,1732203063192,-500.0,0.00041917,7]
[342913095,1732203063202,-500.0,0.00041917,18]
[342913096,1732203063212,-500.0,0.00041917,18]
[342913097,1732203063234,-325.17095239,0.00041917,18]
[342913098,1732203063245,-500.0,0.00041917,18]
[342913099,1732203063255,-1070.68,0.00041917,18]
[342913100,1732203063266,-1008.71,0.00041917,18]
[342913101,1732203063276,-500.0,0.00041917,18]
[342913102,1732203063287,-930.53,0.00041917,18]
[342913103,1732203063298,-500.0,0.00041917,18]
[342913104,1732203063309,-988.17,0.00041917,18]
[342913105,1732203063320,-500.0,0.00041917,18]
[342913106,1732203063330,-500.0,0.00041917,18]
[342913107,1732203063342,-500.0,0.00041917,18]
[342913108,1732203063355,-506.34,0.00041917,18]
[342913109,1732203063366,-500.0,0.00041917,18]
[342913110,1732203063377,-1231.05,0.00041917,18]
[342913111,1732203063387,-1325.85,0.00041917,18]
[342913112,1732203063398,-3923.09,0.00041917,18]
[342913113,1732203063408,-613.27,0.00041917,18]
[342913114,1732203063419,-642.03,0.00041917,18]
[342913115,1732203063429,-2493.49,0.00041917,18]
[342913116,1732203063439,-951.77,0.00041917,18]
[342913117,1732203063450,-500.0,0.00041917,18]
[342913118,1732203063461,-1095.88,0.00041917,18]
[342913119,1732203063484,-1258.46,0.00041917,18]
[342913120,1732203063494,-1342.59,0.00041917,18]
[342913121,1732203063505,-831.99,0.00041917,18]
[342913122,1732203063515,-500.0,0.00041917,18]
[342913123,1732203063525,-825.55,0.00041917,18]
[342913124,1732203063537,-2436.07,0.00041917,18]
[342913125,1732203063547,-1517.83,0.00041917,18]
[342913126,1732203063556,-1140.98,0.00041917,18]
[342913127,1732203063566,-500.0,0.00041917,18]
[342913128,1732203063576,-500.0,0.00041917,18]
[342913129,1732203063586,-715.65,0.00041917,18]
[342913130,1732203063596,-532.56,0.00041917,18]
[342913131,1732203063607,-1429.85,0.00041917,18]
[342913132,1732203063618,-882.47,0.00041917,18]
[342913133,1732203063628,-4581.34,0.00041917,18]
[342913134,1732203063638,-673.52,0.00041917,7]
[342913135,1732203063648,-437.63161976,0.00041917,18]
[342913136,1732203063658,-3066.84,0.00041917,18]
[342913137,1732203063668,-537.67,0.00041917,18]
[342913138,1732203063678,-500.0,0.00041917,18]
[342913139,1732203063688,-500.0,0.00041917,18]
[342913140,1732203063698,-500.0,0.00041917,18]
[342913141,1732203063709,-500.0,0.00041917,18]
[342913142,1732203063726,-597.5,0.00041917,18]
[342913143,1732203063736,-500.0,0.00041917,18]
[342913144,1732203063747,-2272.21,0.00041917,18]
[342913145,1732203063758,-500.0,0.00041917,18]
[342913146,1732203063773,-1140.96,0.00041917,18]
[342913147,1732203063783,-500.0,0.00041917,18]
[342913148,1732203063793,-1695.24,0.00041917,18]
[342913149,1732203063803,-9426.66,0.00041917,2]
[342913150,1732203063815,-2207.11,0.00041917,18]
[342913151,1732203063826,-500.0,0.00041917,18]
[342913152,1732203063836,-772.2,0.00041917,18]
[342913153,1732203063846,-500.0,0.00041917,18]
[342913154,1732203063858,-504.29,0.00041917,18]
[342913155,1732203063868,-500.0,0.00041917,18]
[342913156,1732203063879,-562.71809763,0.00041917,18]
[342913157,1732203063888,-500.0,0.00041917,18]
[342913158,1732203063899,-638.86,0.00041917,18]
[342913159,1732203063909,-1207.24,0.00041917,18]
[342913160,1732203063920,-500.0,0.00041917,18]
[342913161,1732203063931,-13746.66,0.00041917,18]
[342913162,1732203063943,-822.02,0.00041917,18]
[342913163,1732203063954,-500.0,0.00041917,18]
[342913164,1732203063969,-500.0,0.00041917,18]
[342913165,1732203063980,-701.3,0.00041917,18]
[342913166,1732203063990,-500.0,0.00041917,18]
[342913167,1732203064001,-4447.59,0.00041917,18]
[342913168,1732203064012,-500.0,0.00041917,18]
[342913169,1732203064022,-500.0,0.00041917,18]
[342913170,1732203064033,-667.86,0.00041917,18]
[342913171,1732203064043,-1274.46,0.00041917,18]
[342913172,1732203064056,-965.8,0.00041917,18]
[342913173,1732203064066,-500.0,0.00041917,18]
[342913174,1732203064077,-654.42,0.00041917,18]
[342913175,1732203064087,-2707.92,0.00041917,18]
[342913176,1732203064097,-2163.44,0.00041917,18]
[342913177,1732203064107,-808.65,0.00041917,18]
[342913178,1732203064119,-500.0,0.00041917,18]
[342913179,1732203064129,-150.0,0.00041949,2]
[342913180,1732203064140,-150.0,0.00041951,2]
[342913181,1732203064149,-150.0,0.00041962,2]
[342913182,1732203064159,-846.77,0.00041972,120]
[342913183,1732203064169,-2347.54,0.00041972,120]
[342913184,1732203064179,-356.0,0.00041979,7]
[342913185,1732203064189,-504.282057,0.00041983,120]
[342913186,1732203064199,-2000.0,0.00041983,120]
[342913187,1732203064209,-500.0,0.00041983,120]
[342913188,1732203064224,-500.0,0.00041983,120]
[342913189,1732203064234,-200.0,0.00041983,120]
[342913190,1732203064244,-50000.0,0.00042,20]
[342913191,1732203064255,-50000.0,0.00042,30]
[342913192,1732203064265,-50000.0,0.00042,12]
[342913193,1732203064275,-10000.0,0.00042,120]
[342913194,1732203064285,-151.0,0.00042,14]
[342913195,1732203064295,-151.0,0.00042,14]
[342913196,1732203064305,-151.0,0.00042,14]
[342913197,1732203064315,-151.0,0.00042,14]
[342913198,1732203064324,-151.0,0.00042,14]
[342913199,1732203064334,-151.0,0.00042,14]
[342913200,1732203064345,-413.45988,0.00042,14]
[342913201,1732203064355,-413.45988,0.00042,14]
[342913202,1732203064365,-9696.78014635,0.00042,30]
[342913203,1732203064376,-150.0,0.00042018,2]
[342913204,1732203064386,-150.0,0.00042031,2]
[342913205,1732203064396,-19052.03382735,0.00042036,15]
[342913206,1732203064405,-150.0,0.00042047,2]
[342913207,1732203064415,-292.5209606,0.00042055,30]
[342913208,1732203064425,-150.0,0.00042071,2]
[342913209,1732203064436,-150.0,0.00042082,2]
[342913210,1732203064446,-150.0,0.00042091,2]
[342913211,1732203064456,-280.2,0.000421,30]
[342913212,1732203064470,-1198.0,0.000421,7]
[342913213,1732203064481,-1000.0,0.00042116,2]
[342913214,1732203064491,-150.0,0.00042187,2]
[342913215,1732203064501,-300.0,0.0004219,120]
[342913216,1732203064511,-500.0,0.0004219,18]
[342913217,1732203064522,-500.0,0.0004219,18]
[342913218,1732203064533,-500.0,0.0004219,18]
[342913219,1732203064543,-471.43486749,0.0004219,18]
[342913220,1732203064553,-500.0,0.0004219,18]
[342913221,1732203064564,-182.23780889,0.0004219,18]
[342913222,1732203064576,-500.0,0.0004219,18]
[342913223,1732203064587,-500.0,0.0004219,18]
[342913224,1732203064598,-500.0,0.0004219,18]
[342913225,1732203064609,-563.4,0.0004219,18]
[342913226,1732203064619,-560.63,0.0004219,18]
[342913227,1732203064629,-528.13,0.0004219,18]
[342913228,1732203064640,-500.0,0.0004219,18]
[342913229,1732203064780,-500.0,0.0004219,18]
[342913230,1732203064800,-500.0,0.0004219,18]
[342913231,1732203064810,-500.0,0.0004219,18]
[342913232,1732203064821,-560.23,0.0004219,18]
[342913233,1732203064831,-500.0,0.0004219,18]
[342913234,1732203064840,-500.0,0.0004219,18]
[342913235,1732203064850,-500.0,0.0004219,18]
[342913236,1732203064859,-593.3287668,0.0004219,18]
[342913237,1732203064870,-500.0,0.0004219,18]
[342913238,1732203064880,-500.0,0.0004219,18]
[342913239,1732203064889,-500.0,0.0004219,18]
[342913240,1732203064899,-500.0,0.0004219,18]
[342913241,1732203064909,-500.0,0.0004219,120]
[342913242,1732203064920,-500.0,0.0004219,18]
[342913243,1732203064930,-500.0,0.0004219,18]
[342913244,1732203064940,-500.0,0.0004219,18]
[342913245,1732203064950,-500.0,0.0004219,18]
[342913246,1732203064960,-500.0,0.0004219,18]
[342913247,1732203064975,-638.76,0.0004219,18]
[342913248,1732203064985,-500.0,0.0004219,18]
[342913249,1732203064994,-494.59880839,0.0004219,18]
[342913250,1732203065004,-500.0,0.0004219,18]
[342913251,1732203065014,-500.0,0.0004219,18]
[342913252,1732203065024,-500.0,0.0004219,18]
[342913253,1732203065034,-500.0,0.0004219,18]
[342913254,1732203065044,-615.56,0.0004219,18]
[342913255,1732203065054,-500.0,0.0004219,18]
[342913256,1732203065065,-500.0,0.0004219,18]
[342913257,1732203065074,-500.0,0.0004219,18]
[342913258,1732203065084,-500.0,0.0004219,18]
[342913259,1732203065093,-530.62,0.0004219,18]
[342913260,1732203065103,-500.0,0.0004219,18]